[Event "*** Titled Tuesday Blitz"]
[Site "Chess.com"]
[Date "2021.04.06"]
[Round "8"]
[White "MIJuanReyesRosa"]
[Black "WinOrTilt"]
[Result "0-1"]
[WhiteElo "2001"]
[BlackElo "2234"]
[TimeControl "180+1"]
[EndTime "11:29:01 PDT"]
[Termination "WinOrTilt won on time"]

1. d4 {[%clk 0:02:59.6]} 1... d5 {[%clk 0:02:31.1]} 2. c4 {[%clk 0:02:59.3]}
2... e6 {[%clk 0:02:21.7]} 3. Nc3 {[%clk 0:02:58.1]} 3... Nf6 {[%clk 0:02:21.8]}
4. Nf3 {[%clk 0:02:58]} 4... c6 {[%clk 0:02:22]} 5. e3 {[%clk 0:02:56.8]} 5...
Bd6 {[%clk 0:02:22.3]} 6. Bd3 {[%clk 0:02:56.7]} 6... Nbd7 {[%clk 0:02:22.8]} 7.
O-O {[%clk 0:02:56.4]} 7... O-O {[%clk 0:02:23.2]} 8. e4 {[%clk 0:02:55.5]} 8...
e5 {[%clk 0:02:23]} 9. cxd5 {[%clk 0:02:48]} 9... cxd5 {[%clk 0:02:23.9]} 10.
Nb5 {[%clk 0:02:29.5]} 10... Bb8 {[%clk 0:02:22.1]} 11. dxe5 {[%clk 0:02:19.4]}
11... Nxe5 {[%clk 0:02:16.6]} 12. Nxe5 {[%clk 0:02:14]} 12... Bxe5 {[%clk
0:02:17.5]} 13. f4 {[%clk 0:02:02.7]} 13... Bb8 {[%clk 0:02:07.8]} 14. e5 {[%clk
0:01:58]} 14... Qb6+ {[%clk 0:02:06.5]} 15. Kh1 {[%clk 0:01:56.5]} 15... Ng4
{[%clk 0:02:06.4]} 16. Qe2 {[%clk 0:01:48.9]} 16... a6 {[%clk 0:01:48.9]} 17.
Nc3 {[%clk 0:01:28.7]} 17... Rd8 {[%clk 0:01:45.1]} 18. h3 {[%clk 0:01:25.7]}
18... Nh6 {[%clk 0:01:38.5]} 19. f5 {[%clk 0:00:41.6]} 19... d4 {[%clk 0:01:32]}
20. Na4 {[%clk 0:00:20.9]} 20... Qc6 {[%clk 0:01:27.5]} 21. f6 {[%clk
0:00:15.6]} 21... Bxh3 {[%clk 0:01:04.6]} 22. Bxh6 {[%clk 0:00:12.9]} 22... gxh6
{[%clk 0:01:00.4]} 23. Be4 {[%clk 0:00:07.8]} 23... Qe6 {[%clk 0:00:56.4]} 24.
gxh3 {[%clk 0:00:07.2]} 24... Qxh3+ {[%clk 0:00:57.3]} 25. Qh2 {[%clk
0:00:06.7]} 25... Qxh2+ {[%clk 0:00:57]} 26. Kxh2 {[%clk 0:00:06.7]} 26... Bxe5+
{[%clk 0:00:55.9]} 27. Kh3 {[%clk 0:00:06.3]} 27... Rd6 {[%clk 0:00:40.6]} 28.
Rac1 {[%clk 0:00:05.4]} 28... Bxf6 {[%clk 0:00:34.2]} 29. Rc7 {[%clk 0:00:03.9]}
29... Re8 {[%clk 0:00:30.1]} 30. Rxb7 {[%clk 0:00:02.7]} 30... Rxe4 {[%clk
0:00:29.8]} 31. Nc5 {[%clk 0:00:02.3]} 31... Re3+ {[%clk 0:00:28.9]} 0-1

[Event "*** Titled Tuesday Blitz"]
[Site "Chess.com"]
[Date "2021.04.06"]
[Round "8"]
[White "Skatchkov_V"]
[Black "gmgamil"]
[Result "0-1"]
[WhiteElo "2614"]
[BlackElo "2810"]
[TimeControl "180+1"]
[EndTime "11:29:02 PDT"]
[Termination "gmgamil won by resignation"]

1. d4 {[%clk 0:02:57.2]} 1... Nf6 {[%clk 0:02:57.9]} 2. c4 {[%clk 0:02:57]} 2...
g6 {[%clk 0:02:58.4]} 3. Nf3 {[%clk 0:02:57.4]} 3... Bg7 {[%clk 0:02:59.3]} 4.
g3 {[%clk 0:02:58]} 4... O-O {[%clk 0:03:00.2]} 5. Bg2 {[%clk 0:02:58.7]} 5...
d6 {[%clk 0:03:01.1]} 6. O-O {[%clk 0:02:59.4]} 6... Nbd7 {[%clk 0:03:01.1]} 7.
Nc3 {[%clk 0:02:59.9]} 7... e5 {[%clk 0:03:02]} 8. e4 {[%clk 0:03:00.6]} 8...
Re8 {[%clk 0:03:01.2]} 9. h3 {[%clk 0:02:59.9]} 9... a5 {[%clk 0:03:01.1]} 10.
Re1 {[%clk 0:02:59.4]} 10... c6 {[%clk 0:02:58.4]} 11. Be3 {[%clk 0:02:59.6]}
11... exd4 {[%clk 0:02:57.4]} 12. Nxd4 {[%clk 0:03:00.5]} 12... Nc5 {[%clk
0:02:57.9]} 13. Qc2 {[%clk 0:02:59.8]} 13... a4 {[%clk 0:02:58.3]} 14. b4 {[%clk
0:02:49.6]} 14... axb3 {[%clk 0:02:22.2]} 15. axb3 {[%clk 0:02:50.5]} 15... Rxa1
{[%clk 0:02:21.1]} 16. Rxa1 {[%clk 0:02:51.4]} 16... Qe7 {[%clk 0:02:18.7]} 17.
f3 {[%clk 0:01:25.1]} 17... Nh5 {[%clk 0:02:06.6]} 18. Nde2 {[%clk 0:01:21.4]}
18... f5 {[%clk 0:02:04.7]} 19. b4 {[%clk 0:01:16.9]} 19... fxe4 {[%clk
0:02:00.9]} 20. f4 {[%clk 0:01:09.6]} 20... Nd3 {[%clk 0:01:56.1]} 21. Rb1
{[%clk 0:01:08.8]} 21... Nf6 {[%clk 0:01:44.8]} 22. Bd4 {[%clk 0:00:59.5]} 22...
c5 {[%clk 0:00:46.8]} 23. bxc5 {[%clk 0:00:46.6]} 23... Nxc5 {[%clk 0:00:46.2]}
24. Rd1 {[%clk 0:00:38.6]} 24... e3 {[%clk 0:00:42.5]} 25. Nb5 {[%clk
0:00:33.8]} 25... Bf5 {[%clk 0:00:41.3]} 26. Qb2 {[%clk 0:00:31.3]} 26... Nd3
{[%clk 0:00:38.4]} 27. Qa3 {[%clk 0:00:24.7]} 27... Nf2 {[%clk 0:00:38.4]} 28.
Ra1 {[%clk 0:00:15.1]} 28... Nxh3+ {[%clk 0:00:38.8]} 29. Bxh3 {[%clk 0:00:16]}
29... Bxh3 {[%clk 0:00:39.4]} 30. Nxd6 {[%clk 0:00:16.9]} 30... Rd8 {[%clk
0:00:33.9]} 31. c5 {[%clk 0:00:14.8]} 31... Rxd6 {[%clk 0:00:27.3]} 32. cxd6
{[%clk 0:00:14.7]} 32... Qe4 {[%clk 0:00:27.9]} 33. Qa8+ {[%clk 0:00:10.7]}
33... Bf8 {[%clk 0:00:27.6]} 0-1

[Event "*** Titled Tuesday Blitz"]
[Site "Chess.com"]
[Date "2021.04.06"]
[Round "8"]
[White "olksuna"]
[Black "GrigoriyM2001"]
[Result "1-0"]
[WhiteElo "2677"]
[BlackElo "2543"]
[TimeControl "180+1"]
[EndTime "11:29:02 PDT"]
[Termination "olksuna won by checkmate"]

1. e4 {[%clk 0:03:00.9]} 1... c6 {[%clk 0:02:56.6]} 2. Nf3 {[%clk 0:03:00.4]}
2... d5 {[%clk 0:02:55.6]} 3. Nc3 {[%clk 0:03:00.9]} 3... Bg4 {[%clk 0:02:55.2]}
4. h3 {[%clk 0:03:00.9]} 4... Bxf3 {[%clk 0:02:55.7]} 5. Qxf3 {[%clk 0:03:01.8]}
5... e6 {[%clk 0:02:56.3]} 6. d4 {[%clk 0:03:00.6]} 6... Nf6 {[%clk 0:02:56.9]}
7. exd5 {[%clk 0:02:59.1]} 7... cxd5 {[%clk 0:02:55.5]} 8. Bd3 {[%clk
0:02:49.5]} 8... Nc6 {[%clk 0:02:51.2]} 9. Ne2 {[%clk 0:02:49.6]} 9... Be7
{[%clk 0:02:38.6]} 10. c3 {[%clk 0:02:49.3]} 10... O-O {[%clk 0:02:38.4]} 11.
O-O {[%clk 0:02:49.9]} 11... Qc7 {[%clk 0:02:34.7]} 12. Bf4 {[%clk 0:02:47.3]}
12... Bd6 {[%clk 0:02:34.3]} 13. Bg5 {[%clk 0:02:40.9]} 13... Nd7 {[%clk
0:02:34.5]} 14. Qh5 {[%clk 0:02:33.7]} 14... g6 {[%clk 0:02:33.6]} 15. Qh4
{[%clk 0:02:31.4]} 15... Rfe8 {[%clk 0:02:21.1]} 16. Rfe1 {[%clk 0:02:29]} 16...
Rab8 {[%clk 0:01:49.9]} 17. a4 {[%clk 0:02:26.5]} 17... a6 {[%clk 0:01:49.3]}
18. Bf4 {[%clk 0:02:14]} 18... b5 {[%clk 0:01:42.2]} 19. axb5 {[%clk 0:02:09.3]}
19... axb5 {[%clk 0:01:43.1]} 20. Ra6 {[%clk 0:02:05.3]} 20... b4 {[%clk
0:01:34.4]} 21. Bxd6 {[%clk 0:02:01.3]} 21... Qxd6 {[%clk 0:01:34.1]} 22. Nf4
{[%clk 0:01:47]} 22... e5 {[%clk 0:01:10.6]} 23. Nxd5 {[%clk 0:01:14.9]} 23...
exd4 {[%clk 0:00:34.5]} 24. Rxe8+ {[%clk 0:01:07.2]} 24... Rxe8 {[%clk
0:00:35.4]} 25. Nxb4 {[%clk 0:01:05.3]} 25... Ndb8 {[%clk 0:00:28.7]} 26. Rb6
{[%clk 0:00:23.3]} 26... Re1+ {[%clk 0:00:23.3]} 27. Bf1 {[%clk 0:00:22.4]}
27... Qc5 {[%clk 0:00:22.3]} 28. Rb7 {[%clk 0:00:18.1]} 28... Qc4 {[%clk
0:00:20.8]} 29. Qf6 {[%clk 0:00:12]} 29... Qxf1+ {[%clk 0:00:19]} 30. Kh2 {[%clk
0:00:12.3]} 30... Qh1+ {[%clk 0:00:10.4]} 31. Kg3 {[%clk 0:00:11.7]} 31... Rg1
{[%clk 0:00:09.8]} 32. Qxf7+ {[%clk 0:00:11.1]} 32... Kh8 {[%clk 0:00:08.7]} 33.
Qg7# {[%clk 0:00:11.7]} 1-0

[Event "*** Titled Tuesday Blitz"]
[Site "Chess.com"]
[Date "2021.04.06"]
[Round "8"]
[White "szabadaba"]
[Black "kirillshevchenko"]
[Result "0-1"]
[WhiteElo "2694"]
[BlackElo "2844"]
[TimeControl "180+1"]
[EndTime "11:29:03 PDT"]
[Termination "kirillshevchenko won by resignation"]

1. e4 {[%clk 0:03:00.9]} 1... e5 {[%clk 0:02:58.6]} 2. Nf3 {[%clk 0:03:00.5]}
2... d6 {[%clk 0:02:58.9]} 3. d4 {[%clk 0:02:59.9]} 3... exd4 {[%clk 0:02:59.8]}
4. Qxd4 {[%clk 0:02:59.4]} 4... Nf6 {[%clk 0:02:51.2]} 5. Nc3 {[%clk 0:02:58.2]}
5... Be7 {[%clk 0:02:51.3]} 6. Bb5+ {[%clk 0:02:57.8]} 6... Bd7 {[%clk
0:02:48.8]} 7. Bg5 {[%clk 0:02:51.5]} 7... Bxb5 {[%clk 0:02:45.7]} 8. Nxb5
{[%clk 0:02:50]} 8... Nc6 {[%clk 0:02:46.3]} 9. Qd3 {[%clk 0:02:36.4]} 9... O-O
{[%clk 0:02:43.6]} 10. O-O {[%clk 0:02:31.8]} 10... Re8 {[%clk 0:02:33.4]} 11.
Rfe1 {[%clk 0:02:22.7]} 11... a6 {[%clk 0:02:02.2]} 12. Nbd4 {[%clk 0:02:19.4]}
12... h6 {[%clk 0:01:39.3]} 13. Nxc6 {[%clk 0:02:11.6]} 13... bxc6 {[%clk
0:01:39.3]} 14. Bh4 {[%clk 0:02:11.1]} 14... Nd7 {[%clk 0:01:30.1]} 15. Bxe7
{[%clk 0:02:06.6]} 15... Qxe7 {[%clk 0:01:31]} 16. Qc4 {[%clk 0:01:59.7]} 16...
c5 {[%clk 0:01:28.6]} 17. b3 {[%clk 0:01:56.7]} 17... a5 {[%clk 0:01:24]} 18. a4
{[%clk 0:01:56.4]} 18... Ne5 {[%clk 0:01:17]} 19. Nxe5 {[%clk 0:01:55.7]} 19...
Qxe5 {[%clk 0:01:17.9]} 20. h3 {[%clk 0:01:50.4]} 20... Reb8 {[%clk 0:01:12.3]}
21. Rad1 {[%clk 0:01:43.1]} 21... Rb4 {[%clk 0:01:11.4]} 22. Qd5 {[%clk
0:01:41.8]} 22... Re8 {[%clk 0:01:11.3]} 23. f3 {[%clk 0:01:12.8]} 23... Qxd5
{[%clk 0:01:06.4]} 24. Rxd5 {[%clk 0:01:11]} 24... f6 {[%clk 0:00:57.2]} 25. Kf2
{[%clk 0:01:09.8]} 25... Kf7 {[%clk 0:00:57.6]} 26. Re3 {[%clk 0:01:02.2]} 26...
Re5 {[%clk 0:00:49.8]} 27. Rd2 {[%clk 0:00:58]} 27... c4 {[%clk 0:00:46.4]} 28.
Rc3 {[%clk 0:00:48.8]} 28... Rc5 {[%clk 0:00:46.5]} 29. Re3 {[%clk 0:00:17.8]}
29... Ke6 {[%clk 0:00:44.4]} 30. Ke2 {[%clk 0:00:17.2]} 30... h5 {[%clk
0:00:38.2]} 31. h4 {[%clk 0:00:15.8]} 31... cxb3 {[%clk 0:00:34.3]} 32. cxb3
{[%clk 0:00:15.5]} 32... Rc1 {[%clk 0:00:34.9]} 33. Rd5 {[%clk 0:00:13.7]} 33...
Rc2+ {[%clk 0:00:32.2]} 34. Rd2 {[%clk 0:00:13.8]} 34... Rc5 {[%clk 0:00:28.7]}
35. Kd3 {[%clk 0:00:11.6]} 35... Rxb3+ {[%clk 0:00:28.7]} 36. Ke2 {[%clk
0:00:11.8]} 36... Rb4 {[%clk 0:00:24.7]} 37. Red3 {[%clk 0:00:10.2]} 37... Rxa4
{[%clk 0:00:24.4]} 38. Rd5 {[%clk 0:00:11.1]} 38... Rac4 {[%clk 0:00:23.6]} 0-1

[Event "*** Titled Tuesday Blitz"]
[Site "Chess.com"]
[Date "2021.04.06"]
[Round "8"]
[White "Nemsko"]
[Black "j2806"]
[Result "1-0"]
[WhiteElo "2303"]
[BlackElo "2150"]
[TimeControl "180+1"]
[EndTime "11:29:03 PDT"]
[Termination "Nemsko won by resignation"]

1. e4 {[%clk 0:03:00.9]} 1... c5 {[%clk 0:03:00]} 2. Nf3 {[%clk 0:02:58.2]} 2...
d6 {[%clk 0:03:00.2]} 3. d4 {[%clk 0:02:59.1]} 3... cxd4 {[%clk 0:03:00.6]} 4.
Nxd4 {[%clk 0:03:00]} 4... Nf6 {[%clk 0:03:00.9]} 5. Nc3 {[%clk 0:02:58.7]} 5...
a6 {[%clk 0:03:01.3]} 6. Be3 {[%clk 0:02:57]} 6... e5 {[%clk 0:03:01.3]} 7. Nb3
{[%clk 0:02:56.6]} 7... Be6 {[%clk 0:03:01.7]} 8. h3 {[%clk 0:02:48.3]} 8... Be7
{[%clk 0:02:51.9]} 9. Qf3 {[%clk 0:02:48]} 9... Qc7 {[%clk 0:02:46]} 10. O-O-O
{[%clk 0:02:39.4]} 10... Nbd7 {[%clk 0:02:39.8]} 11. g4 {[%clk 0:02:37.6]} 11...
O-O {[%clk 0:02:21.5]} 12. g5 {[%clk 0:02:35.2]} 12... Ne8 {[%clk 0:02:19.9]}
13. h4 {[%clk 0:02:34.5]} 13... Nc5 {[%clk 0:02:16.3]} 14. h5 {[%clk 0:02:23.5]}
14... Nxb3+ {[%clk 0:02:13.9]} 15. axb3 {[%clk 0:02:22.8]} 15... b5 {[%clk
0:02:07.5]} 16. Kb1 {[%clk 0:02:21.5]} 16... Rc8 {[%clk 0:01:42.3]} 17. Bd3
{[%clk 0:02:19.6]} 17... Qc6 {[%clk 0:01:37.4]} 18. Nd5 {[%clk 0:02:11.1]} 18...
Bd8 {[%clk 0:01:25.1]} 19. Qg2 {[%clk 0:02:00.8]} 19... f5 {[%clk 0:01:12.3]}
20. gxf6 {[%clk 0:01:54.1]} 20... Bxf6 {[%clk 0:01:11.6]} 21. Rhg1 {[%clk
0:01:47.2]} 21... Rf7 {[%clk 0:01:02.9]} 22. f4 {[%clk 0:01:34.1]} 22... exf4
{[%clk 0:00:54.8]} 23. Nxf4 {[%clk 0:01:19.8]} 23... Bd7 {[%clk 0:00:43.8]} 24.
h6 {[%clk 0:01:08.5]} 24... Kh8 {[%clk 0:00:34.8]} 25. hxg7+ {[%clk 0:00:58.4]}
25... Nxg7 {[%clk 0:00:31.6]} 26. Rh1 {[%clk 0:00:45.4]} 26... Ne6 {[%clk
0:00:25.4]} 27. Ng6+ {[%clk 0:00:42.9]} 27... Kg8 {[%clk 0:00:18.9]} 28. Ne5+
{[%clk 0:00:42.1]} 28... Rg7 {[%clk 0:00:15.9]} 29. Qxg7+ {[%clk 0:00:39.2]}
29... Bxg7 {[%clk 0:00:14.1]} 30. Nxc6 {[%clk 0:00:39.1]} 30... Bxc6 {[%clk
0:00:13.4]} 31. Rhg1 {[%clk 0:00:38.5]} 31... Kh8 {[%clk 0:00:12.6]} 32. c3
{[%clk 0:00:35]} 32... Nc5 {[%clk 0:00:12.3]} 33. Bxc5 {[%clk 0:00:32.5]} 33...
dxc5 {[%clk 0:00:11.3]} 34. Rg5 {[%clk 0:00:27.5]} 34... Re8 {[%clk 0:00:08.6]}
35. Rxc5 {[%clk 0:00:25.1]} 35... Bxe4 {[%clk 0:00:05.9]} 36. Bxe4 {[%clk
0:00:17.4]} 1-0

[Event "*** Titled Tuesday Blitz"]
[Site "Chess.com"]
[Date "2021.04.06"]
[Round "8"]
[White "Oleksandr_Bortnyk"]
[Black "fearless_guy"]
[Result "0-1"]
[WhiteElo "2939"]
[BlackElo "2799"]
[TimeControl "180+1"]
[EndTime "11:29:05 PDT"]
[Termination "fearless_guy won on time"]

1. d4 {[%clk 0:03:00.9]} 1... e6 {[%clk 0:02:59.5]} 2. Nc3 {[%clk 0:03:00.1]}
2... d5 {[%clk 0:02:58.9]} 3. e4 {[%clk 0:02:59.8]} 3... h6 {[%clk 0:02:58.8]}
4. Nf3 {[%clk 0:02:59.2]} 4... Nf6 {[%clk 0:02:58.9]} 5. Bd3 {[%clk 0:02:58.4]}
5... Bb4 {[%clk 0:02:59.1]} 6. e5 {[%clk 0:02:58.7]} 6... Ne4 {[%clk 0:02:59.1]}
7. O-O {[%clk 0:02:58.8]} 7... Nxc3 {[%clk 0:02:59.5]} 8. bxc3 {[%clk
0:02:59.7]} 8... Bxc3 {[%clk 0:03:00.4]} 9. Rb1 {[%clk 0:03:00.4]} 9... Nc6
{[%clk 0:03:00.6]} 10. Ba3 {[%clk 0:02:57.7]} 10... a5 {[%clk 0:03:00.6]} 11.
Bb5 {[%clk 0:02:52.1]} 11... Bb4 {[%clk 0:03:00.6]} 12. Bxb4 {[%clk 0:02:03.5]}
12... axb4 {[%clk 0:03:01.5]} 13. Rxb4 {[%clk 0:02:03.8]} 13... Rxa2 {[%clk
0:03:01.7]} 14. Qb1 {[%clk 0:01:59.1]} 14... Ra8 {[%clk 0:02:56.9]} 15. Bxc6+
{[%clk 0:01:57.7]} 15... bxc6 {[%clk 0:02:57.8]} 16. Nd2 {[%clk 0:01:48.1]}
16... Ba6 {[%clk 0:02:46.3]} 17. Re1 {[%clk 0:01:44.5]} 17... O-O {[%clk
0:02:46.1]} 18. Rb3 {[%clk 0:01:36.7]} 18... Qh4 {[%clk 0:02:25.4]} 19. Nf3
{[%clk 0:01:18.9]} 19... Qe7 {[%clk 0:02:24.5]} 20. Nd2 {[%clk 0:00:36.1]} 20...
c5 {[%clk 0:02:14.4]} 21. Rg3 {[%clk 0:00:33]} 21... cxd4 {[%clk 0:02:09.4]} 22.
Nf3 {[%clk 0:00:33.7]} 22... f5 {[%clk 0:01:39.5]} 23. Qc1 {[%clk 0:00:34.6]}
23... Kh7 {[%clk 0:01:25]} 24. Nxd4 {[%clk 0:00:31.3]} 24... c5 {[%clk
0:01:24.7]} 25. Nf3 {[%clk 0:00:31.3]} 25... d4 {[%clk 0:01:16.4]} 26. h4 {[%clk
0:00:19.2]} 26... Bb7 {[%clk 0:01:05.9]} 27. Qf4 {[%clk 0:00:19.1]} 27... Qf7
{[%clk 0:00:55.4]} 28. Rb1 {[%clk 0:00:16.2]} 28... Be4 {[%clk 0:00:51.1]} 29.
Rb6 {[%clk 0:00:15.6]} 29... Rfb8 {[%clk 0:00:46.5]} 30. Rxb8 {[%clk 0:00:05.9]}
30... Rxb8 {[%clk 0:00:47.4]} 31. Nd2 {[%clk 0:00:04.7]} 31... Bd5 {[%clk
0:00:46]} 32. c3 {[%clk 0:00:03.8]} 32... Qh5 {[%clk 0:00:42.6]} 33. cxd4 {[%clk
0:00:02.8]} 33... Qd1+ {[%clk 0:00:40.7]} 34. Kh2 {[%clk 0:00:03]} 34... Rb4
{[%clk 0:00:36.3]} 35. Qe3 {[%clk 0:00:01.5]} 35... cxd4 {[%clk 0:00:34.3]} 36.
Qd3 {[%clk 0:00:01.5]} 36... Ra4 {[%clk 0:00:32.4]} 37. Qb5 {[%clk 0:00:01.6]}
37... Ra1 {[%clk 0:00:31.2]} 0-1

[Event "*** Titled Tuesday Blitz"]
[Site "Chess.com"]
[Date "2021.04.06"]
[Round "8"]
[White "Trickster_Pony"]
[Black "volunteers1998"]
[Result "1-0"]
[WhiteElo "1575"]
[BlackElo "2207"]
[TimeControl "180+1"]
[EndTime "11:29:05 PDT"]
[Termination "Trickster_Pony won by resignation"]

1. c4 {[%clk 0:03:00.9]} 1... f5 {[%clk 0:02:58.8]} 2. g3 {[%clk 0:02:59.5]}
2... Nf6 {[%clk 0:02:56.9]} 3. Bg2 {[%clk 0:02:58.1]} 3... g6 {[%clk 0:02:56.5]}
4. Nc3 {[%clk 0:02:57.1]} 4... Bg7 {[%clk 0:02:55.4]} 5. d3 {[%clk 0:02:54]}
5... O-O {[%clk 0:02:55.1]} 6. Nf3 {[%clk 0:02:53.5]} 6... d6 {[%clk 0:02:52.3]}
7. O-O {[%clk 0:02:53.2]} 7... e5 {[%clk 0:02:51]} 8. Nd2 {[%clk 0:02:52.8]}
8... Nc6 {[%clk 0:02:45.2]} 9. Rb1 {[%clk 0:02:50.3]} 9... a6 {[%clk 0:02:41.3]}
10. b4 {[%clk 0:02:43.6]} 10... g5 {[%clk 0:02:34.5]} 11. b5 {[%clk 0:02:41.9]}
11... axb5 {[%clk 0:02:31.8]} 12. cxb5 {[%clk 0:02:42.8]} 12... Nd4 {[%clk
0:02:29]} 13. e3 {[%clk 0:02:40]} 13... Ne6 {[%clk 0:02:26]} 14. Nd5 {[%clk
0:02:33]} 14... Qe8 {[%clk 0:02:09.5]} 15. Qb3 {[%clk 0:02:27.5]} 15... Kh8
{[%clk 0:02:03.6]} 16. Nxf6 {[%clk 0:02:16.3]} 16... Rxf6 {[%clk 0:02:00.4]} 17.
Nc4 {[%clk 0:02:13.7]} 17... Qh5 {[%clk 0:01:54.8]} 18. b6 {[%clk 0:02:08.2]}
18... Rh6 {[%clk 0:01:47.8]} 19. h3 {[%clk 0:02:07.8]} 19... Nc5 {[%clk
0:01:37.2]} 20. Qb5 {[%clk 0:01:58.8]} 20... c6 {[%clk 0:01:33.2]} 21. Qb2
{[%clk 0:01:45.8]} 21... f4 {[%clk 0:00:38.9]} 22. exf4 {[%clk 0:00:50.8]} 22...
Bxh3 {[%clk 0:00:33.1]} 23. fxg5 {[%clk 0:00:28.6]} 23... Bxg2 {[%clk
0:00:30.7]} 24. Kxg2 {[%clk 0:00:29.5]} 24... Qh3+ {[%clk 0:00:26.2]} 25. Kf3
{[%clk 0:00:29.7]} 25... Qxf1 {[%clk 0:00:23.3]} 26. gxh6 {[%clk 0:00:28.6]}
26... Rf8+ {[%clk 0:00:17]} 27. Kg4 {[%clk 0:00:27.2]} 27... Qxf2 {[%clk
0:00:11.2]} 28. hxg7+ {[%clk 0:00:23.6]} 28... Kxg7 {[%clk 0:00:10.3]} 29. Qxf2
{[%clk 0:00:21.7]} 29... Rxf2 {[%clk 0:00:10.8]} 30. Nxd6 {[%clk 0:00:19.5]}
30... Nxd3 {[%clk 0:00:10.1]} 31. Be3 {[%clk 0:00:19.3]} 31... Rxa2 {[%clk
0:00:08.9]} 32. Nxb7 {[%clk 0:00:17.6]} 32... Ra6 {[%clk 0:00:07]} 33. Nc5
{[%clk 0:00:16.8]} 33... Nxc5 {[%clk 0:00:05]} 34. Bxc5 {[%clk 0:00:15.9]} 34...
Ra8 {[%clk 0:00:05.6]} 35. b7 {[%clk 0:00:15.9]} 35... Rb8 {[%clk 0:00:05.7]}
36. Bd6 {[%clk 0:00:16.5]} 1-0

[Event "*** Titled Tuesday Blitz"]
[Site "Chess.com"]
[Date "2021.04.06"]
[Round "8"]
[White "Chernobay_Artem"]
[Black "c_r_e_e_p_e_r"]
[Result "1-0"]
[WhiteElo "2580"]
[BlackElo "2363"]
[TimeControl "180+1"]
[EndTime "11:29:06 PDT"]
[Termination "Chernobay_Artem won by checkmate"]

1. d4 {[%clk 0:02:57]} 1... Nf6 {[%clk 0:02:59.8]} 2. c4 {[%clk 0:02:55.8]} 2...
e6 {[%clk 0:03:00.4]} 3. Nf3 {[%clk 0:02:55.4]} 3... b6 {[%clk 0:03:00.3]} 4. g3
{[%clk 0:02:55.5]} 4... Ba6 {[%clk 0:03:00.6]} 5. b3 {[%clk 0:02:55.8]} 5... c5
{[%clk 0:03:00.1]} 6. d5 {[%clk 0:02:40.2]} 6... Nxd5 {[%clk 0:02:59.6]} 7. cxd5
{[%clk 0:02:36.5]} 7... Qf6 {[%clk 0:02:59.9]} 8. dxe6 {[%clk 0:01:59.3]} 8...
Qxa1 {[%clk 0:02:51.5]} 9. exf7+ {[%clk 0:01:57.9]} 9... Kd8 {[%clk 0:02:37.8]}
10. Bg2 {[%clk 0:01:55.8]} 10... Bb7 {[%clk 0:02:01]} 11. O-O {[%clk 0:01:53.1]}
11... Be7 {[%clk 0:01:46]} 12. Bf4 {[%clk 0:01:47.4]} 12... Qf6 {[%clk
0:01:40.6]} 13. Na3 {[%clk 0:01:33.6]} 13... d5 {[%clk 0:01:06.2]} 14. Ne5
{[%clk 0:01:23.6]} 14... Qe6 {[%clk 0:00:47.8]} 15. Nb5 {[%clk 0:01:20.7]} 15...
g5 {[%clk 0:00:33.8]} 16. Nd3 {[%clk 0:00:30.7]} 16... gxf4 {[%clk 0:00:26.3]}
17. Nxf4 {[%clk 0:00:31.6]} 17... Qxf7 {[%clk 0:00:26.7]} 18. Nxd5 {[%clk
0:00:31.4]} 18... Nd7 {[%clk 0:00:21.1]} 19. Nxb6 {[%clk 0:00:10]} 19... axb6
{[%clk 0:00:16.9]} 20. Bxb7 {[%clk 0:00:10.5]} 20... Rb8 {[%clk 0:00:14.7]} 21.
Bc6 {[%clk 0:00:10.4]} 21... Bf8 {[%clk 0:00:13]} 22. e4 {[%clk 0:00:08.2]}
22... Kc8 {[%clk 0:00:09.8]} 23. f4 {[%clk 0:00:05.6]} 23... Qe7 {[%clk
0:00:05.8]} 24. e5 {[%clk 0:00:05.6]} 24... Bg7 {[%clk 0:00:03.2]} 25. Qg4
{[%clk 0:00:05.6]} 25... Rg8 {[%clk 0:00:02.5]} 26. Rd1 {[%clk 0:00:05.4]} 26...
Rb7 {[%clk 0:00:01.8]} 27. Bxb7+ {[%clk 0:00:05.3]} 27... Kd8 {[%clk 0:00:02.3]}
28. Bc6 {[%clk 0:00:04.7]} 28... Re8 {[%clk 0:00:01.2]} 29. Rxd7+ {[%clk
0:00:05.3]} 29... Kc8 {[%clk 0:00:01.6]} 30. Rxe7+ {[%clk 0:00:05.8]} 30... Kb8
{[%clk 0:00:02.3]} 31. Rxe8# {[%clk 0:00:05.7]} 1-0

[Event "*** Titled Tuesday Blitz"]
[Site "Chess.com"]
[Date "2021.04.06"]
[Round "8"]
[White "lukazz029"]
[Black "Chessbard1972"]
[Result "1-0"]
[WhiteElo "2141"]
[BlackElo "2314"]
[TimeControl "180+1"]
[EndTime "11:29:06 PDT"]
[Termination "lukazz029 won by resignation"]

1. e4 {[%clk 0:03:00.9]} 1... c5 {[%clk 0:02:57.3]} 2. Nf3 {[%clk 0:02:56.1]}
2... a6 {[%clk 0:02:56.8]} 3. c4 {[%clk 0:02:52]} 3... e6 {[%clk 0:02:56.3]} 4.
Nc3 {[%clk 0:02:51.2]} 4... Qc7 {[%clk 0:02:52.4]} 5. d4 {[%clk 0:02:50.2]} 5...
cxd4 {[%clk 0:02:52.7]} 6. Nxd4 {[%clk 0:02:51.1]} 6... Nf6 {[%clk 0:02:53.1]}
7. Be3 {[%clk 0:02:46.5]} 7... Bb4 {[%clk 0:02:50.1]} 8. f3 {[%clk 0:02:34.7]}
8... d5 {[%clk 0:02:44.2]} 9. cxd5 {[%clk 0:02:31.7]} 9... Bxc3+ {[%clk
0:02:42.4]} 10. bxc3 {[%clk 0:02:31.1]} 10... Qxc3+ {[%clk 0:02:42.3]} 11. Kf2
{[%clk 0:02:31]} 11... O-O {[%clk 0:02:36]} 12. Bd3 {[%clk 0:02:18]} 12... exd5
{[%clk 0:02:31.9]} 13. e5 {[%clk 0:02:17.4]} 13... Nfd7 {[%clk 0:02:26.7]} 14.
f4 {[%clk 0:02:14.9]} 14... Nc5 {[%clk 0:02:23.3]} 15. Bc2 {[%clk 0:02:06.5]}
15... Nc6 {[%clk 0:02:19.4]} 16. Nf3 {[%clk 0:02:02.5]} 16... Ne4+ {[%clk
0:02:14.8]} 17. Bxe4 {[%clk 0:02:00.9]} 17... dxe4 {[%clk 0:02:14.8]} 18. Ng5
{[%clk 0:01:55.8]} 18... Qb2+ {[%clk 0:02:01.2]} 19. Kg3 {[%clk 0:01:52.8]}
19... Bf5 {[%clk 0:01:50.6]} 20. Bc5 {[%clk 0:01:46.9]} 20... Rfd8 {[%clk
0:01:47.6]} 21. Bd6 {[%clk 0:01:46.4]} 21... h6 {[%clk 0:01:39.1]} 22. Nh3
{[%clk 0:01:42.2]} 22... Qc3+ {[%clk 0:01:30]} 23. Kh4 {[%clk 0:01:25.1]} 23...
Bxh3 {[%clk 0:01:24.3]} 24. gxh3 {[%clk 0:01:23.4]} 24... g5+ {[%clk 0:01:17.9]}
25. fxg5 {[%clk 0:01:21.9]} 25... hxg5+ {[%clk 0:01:17.1]} 26. Kxg5 {[%clk
0:01:18.4]} 26... Nxe5 {[%clk 0:01:15]} 27. Kh5 {[%clk 0:01:05.1]} 27... Nf3
{[%clk 0:00:59.1]} 28. Rg1+ {[%clk 0:01:02.4]} 28... Kh7 {[%clk 0:00:52.3]} 29.
Qd5 {[%clk 0:00:56.7]} 29... Qf6 {[%clk 0:00:48.2]} 30. Qxe4+ {[%clk 0:00:54.4]}
30... Kh8 {[%clk 0:00:45.8]} 31. Be7 {[%clk 0:00:52.2]} 31... Rd5+ {[%clk
0:00:37]} 32. Qxd5 {[%clk 0:00:49.3]} 32... Qxe7 {[%clk 0:00:34.7]} 33. Qxf3
{[%clk 0:00:47.1]} 33... Rc8 {[%clk 0:00:26.6]} 34. Rg5 {[%clk 0:00:42.8]} 34...
Rc6 {[%clk 0:00:19.8]} 35. Rag1 {[%clk 0:00:41.1]} 35... Rg6 {[%clk 0:00:10.3]}
36. Rxg6 {[%clk 0:00:31.4]} 36... fxg6+ {[%clk 0:00:10.4]} 37. Rxg6 {[%clk
0:00:31.5]} 37... Qe5+ {[%clk 0:00:09.3]} 38. Kh6 {[%clk 0:00:28.9]} 38... Qe7
{[%clk 0:00:03.1]} 39. Qc3+ {[%clk 0:00:26.9]} 1-0